bitfinex/quotes_SOLUSD_20251202
["timestamp","ask_amount","ask_price","bid_price","bid_amount"]
[1764647031309,0.1,127.62,127.61,24.31688922]
[1764647033432,0.1,127.62,127.61,23.65688922]
[1764647033732,0.1,127.62,127.6,7.10051277]
[1764647033932,0.82,127.62,127.59,23.65771731]
[1764647034136,0.82,127.62,127.59,24.31800824]
[1764647034706,0.1,127.62,127.59,24.31800824]
[1764647035107,0.82,127.62,127.59,15.82051277]
[1764647035329,0.82,127.62,127.59,8.72]
[1764647035528,0.1,127.62,127.59,15.82051277]
[1764647035727,0.1,127.62,127.6,7.10051277]
[1764647035928,0.82,127.62,127.59,15.82051277]
[1764647036128,0.82,127.62,127.6,7.10051277]
[1764647036336,0.82,127.62,127.59,7.10051277]
[1764647037339,0.82,127.62,127.59,14.93781818]
[1764647037915,0.82,127.62,127.6,7.10051277]
[1764647038341,0.82,127.62,127.59,14.93781818]
[1764647038544,0.1,127.62,127.61,7.10051277]
[1764647038854,0.1,127.62,127.6,0.66]
[1764647039041,0.1,127.62,127.61,7.10051277]
[1764647039431,0.1,127.62,127.61,15.59688922]
[1764647039626,0.1,127.62,127.61,0.66]
[1764647039836,0.1,127.62,127.61,7.10051277]
[1764647040140,0.1,127.62,127.6,8.49680553]
[1764647040341,0.1,127.62,127.61,7.10051277]
[1764647041061,0.1,127.62,127.61,33.12683414]
[1764647043429,0.1,127.62,127.61,7.83637645]
[1764647043640,0.1,127.62,127.6,7.83696002]
[1764647043641,0.82,127.62,127.6,7.83696002]
[1764647044034,0.82,127.62,127.58,14.93873192]
[1764647044356,0.82,127.62,127.58,15.59873192]
[1764647045865,0.1,127.62,127.6,7.10051277]
[1764647046056,0.82,127.62,127.59,7.10051277]
[1764647046678,0.82,127.62,127.58,35.19427981]
[1764647046989,0.82,127.62,127.6,7.83699059]
[1764647047262,7.10051277,127.61,127.55,7.10051277]
[1764647047434,7.10051277,127.59,127.55,7.10051277]
[1764647047638,7.82051277,127.6,127.55,7.10051277]
[1764647047853,7.82051277,127.59,127.55,7.10051277]
[1764647048057,7.82051277,127.59,127.54,16.48051277]
[1764647048255,0.72,127.58,127.54,16.48051277]
[1764647048461,0.72,127.58,127.54,15.82051277]
[1764647048667,0.72,127.58,127.54,16.48051277]
[1764647049164,0.72,127.58,127.55,7.84006272]
[1764647049676,0.72,127.58,127.55,14.94057549]
[1764647049840,7.83798858,127.59,127.55,14.94057549]
[1764647050042,14.93752054,127.6,127.56,7.76051277]
[1764647050373,0.72,127.59,127.55,15.60057549]
[1764647051767,8.55769288,127.59,127.55,15.60057549]
[1764647052667,0.72,127.59,127.55,15.60057549]
[1764647052842,15.65709189,127.61,127.56,7.80051277]
[1764647053170,0.72,127.6,127.57,0.7]
[1764647053562,0.72,127.6,127.56,7.80051277]
[1764647053865,0.72,127.6,127.57,7.10051277]
[1764647056477,0.72,127.58,127.55,7.10051277]
[1764647056767,0.72,127.58,127.55,14.94048555]
[1764647057065,7.10051277,127.56,127.51,27.40600359]
[1764647057246,7.10051277,127.56,127.52,7.84190715]
[1764647057447,0.72,127.55,127.51,15.64283876]
[1764647058167,0.72,127.55,127.52,7.10051277]
[1764647058358,0.72,127.55,127.51,28.14863137]
[1764647058565,14.93955891,127.57,127.52,7.10051277]
[1764647058764,15.65955891,127.57,127.52,7.80051277]
[1764647058963,0.72,127.56,127.52,7.80051277]
[1764647059270,7.82051277,127.56,127.52,7.80051277]
[1764647059780,0.72,127.55,127.52,7.80051277]
[1764647059950,0.72,127.55,127.51,7.84232599]
[1764647060145,8.56049017,127.55,127.51,7.84232599]
[1764647060374,0.72,127.54,127.51,14.94283876]
[1764647060784,8.55950929,127.56,127.52,7.10051277]
[1764647060961,8.55950929,127.56,127.52,7.80051277]
[1764647061661,8.55950929,127.56,127.52,0.7]
[1764647061859,15.66002206,127.56,127.53,7.84129224]
[1764647062066,0.72,127.55,127.52,7.84188281]
[1764647062359,7.82051277,127.55,127.5,16.52051277]
[1764647062873,7.82051277,127.54,127.5,23.66304392]
[1764647063099,7.82051277,127.54,127.5,14.94304392]
[1764647063379,0.72,127.54,127.5,15.64304392]
[1764647063673,0.72,127.54,127.51,7.10051277]
[1764647063846,0.72,127.54,127.51,14.94303262]
[1764647065470,0.72,127.54,127.51,7.84251985]
[1764647065650,7.84057081,127.55,127.52,7.10051277]
[1764647065976,8.56057081,127.55,127.52,14.94235713]
[1764647066274,0.72,127.54,127.52,14.94235713]
[1764647067074,7.84057081,127.55,127.52,14.94235713]
[1764647067271,8.56057081,127.55,127.52,14.94235713]
[1764647068380,0.72,127.58,127.54,11.11090047]
[1764647068573,0.72,127.58,127.55,11.11090047]
[1764647068771,0.72,127.58,127.53,0.7]
[1764647068959,11.83090047,127.58,127.54,11.11090047]
[1764647069364,0.72,127.58,127.55,0.7]
[1764647069560,0.72,127.58,127.55,18.95094416]
[1764647069761,0.72,127.58,127.55,7.84004369]
[1764647070182,0.72,127.58,127.54,18.95139881]
[1764647070473,0.72,127.58,127.54,12.52927339]
[1764647071881,12.54710416,127.58,127.53,7.8410903]
[1764647072180,21.24710416,127.58,127.54,3.98877505]
[1764647072391,0.69,127.59,127.55,3.98877505]
[1764647072558,13.37877505,127.59,127.55,3.98877505]
[1764647073058,0.69,127.58,127.55,3.98877505]
[1764647073291,0.69,127.6,127.57,3.98877505]
[1764647073559,8.52637645,127.61,127.58,3.98877505]
[1764647073758,8.52637645,127.61,127.57,3.98877505]
[1764647073977,0.69,127.6,127.57,3.98877505]
[1764647074164,0.69,127.6,127.56,8.49909253]
[1764647074480,0.69,127.6,127.57,3.98877505]
[1764647074687,8.62597486,127.62,127.58,3.98877505]
[1764647074879,0.69,127.61,127.57,4.64877505]
[1764647075188,4.67877505,127.61,127.56,12.48786758]
[1764647075355,4.67877505,127.61,127.57,3.98877505]
[1764647075559,0.69,127.6,127.57,3.98877505]
[1764647075970,8.52713217,127.6,127.56,12.48786758]
[1764647076183,8.52713217,127.6,127.54,17.20018028]
[1764647076361,0.69,127.59,127.55,3.98877505]
[1764647076682,0.69,127.59,127.56,3.98877505]
[1764647077056,0.69,127.59,127.55,0.66]
[1764647077295,8.52761189,127.59,127.56,3.98877505]
[1764647077660,0.69,127.58,127.55,4.64877505]
[1764647077862,0.69,127.58,127.54,21.18926684]
[1764647078780,4.67877505,127.58,127.53,11.82986892]
[1764647079287,0.69,127.57,127.53,12.48986892]
[1764647079492,0.69,127.57,127.53,11.82986892]
[1764647079693,4.67877505,127.57,127.53,12.48986892]
[1764647079986,0.69,127.57,127.53,12.48986892]
[1764647080865,0.69,127.57,127.54,4.64877505]
[1764647081163,21.21646051,127.59,127.54,4.64877505]
[1764647081369,0.69,127.58,127.54,4.64877505]
[1764647081570,0.69,127.58,127.55,7.84006272]
[1764647081868,0.69,127.58,127.53,3.98877505]
[1764647081869,12.51714607,127.58,127.53,3.98877505]
[1764647082074,12.51714607,127.58,127.53,4.69877505]
[1764647082283,0.71,127.57,127.53,4.69877505]
[1764647083084,0.71,127.58,127.55,3.98877505]
[1764647084088,0.71,127.58,127.55,11.82864882]
[1764647084305,3.98877505,127.57,127.54,7.84060802]
[1764647084799,0.71,127.56,127.54,7.84060802]
[1764647085093,0.71,127.56,127.52,4.69877505]
[1764647085094,0.71,127.56,127.52,11.83036217]
[1764647085275,4.69877505,127.56,127.52,7.84158712]
[1764647085690,0.71,127.55,127.52,8.55158712]
[1764647085996,0.71,127.55,127.52,12.54036217]
[1764647086779,0.71,127.55,127.52,7.84158712]
[1764647087895,0.71,127.55,127.52,12.54036217]
[1764647088388,11.82847151,127.56,127.52,12.54036217]
[1764647088594,8.54969646,127.56,127.52,12.54036217]
[1764647089592,7.83910337,127.57,127.54,3.98877505]
[1764647089803,0.71,127.56,127.53,4.69877505]
[1764647090301,8.54910337,127.57,127.53,12.5398042]
[1764647090497,8.54910337,127.57,127.53,11.8298042]
[1764647090702,0.71,127.58,127.54,4.69877505]
[1764647090901,0.71,127.58,127.54,0.71]
[1764647090902,4.69877505,127.58,127.54,0.71]
[1764647091200,0.71,127.58,127.53,11.8298042]
[1764647091379,0.71,127.58,127.54,4.69877505]
[1764647092301,0.71,127.58,127.55,4.69877505]
[1764647092484,0.71,127.58,127.55,0.71]
[1764647092677,12.53708599,127.58,127.53,12.5398042]
[1764647092879,8.54831094,127.58,127.54,4.69877505]
[1764647093282,7.83831094,127.58,127.54,4.69877505]
[1764647093578,8.54831094,127.58,127.54,4.69877505]
[1764647093782,0.71,127.58,127.55,0.71]
[1764647094306,8.54828229,127.58,127.55,0.71]
[1764647094705,7.83637645,127.61,127.57,3.98877505]
[1764647094882,7.83637645,127.61,127.58,3.98877505]
[1764647094883,0.71,127.61,127.58,3.98877505]
[1764647095897,11.92460989,127.62,127.58,3.98877505]
[1764647096102,0.1,127.62,127.61,3.98877505]
[1764647096475,0.1,127.62,127.61,4.68877505]
[1764647096680,0.1,127.62,127.61,0.71]
[1764647096985,0.1,127.62,127.61,4.69877505]
[1764647097399,4.70361246,127.64,127.61,42.50635902]
[1764647097624,4.70361246,127.64,127.63,3.98877505]
[1764647097913,4.70361246,127.64,127.63,12.79871997]
[1764647097914,3.07361246,127.64,127.63,12.79871997]
[1764647098279,3.07361246,127.64,127.63,20.63386844]
[1764647098482,3.07361246,127.64,127.63,27.87581337]
[1764647098899,3.07361246,127.64,127.63,16.78725496]
[1764647099113,3.07361246,127.64,127.63,27.87581337]
[1764647099312,3.07361246,127.64,127.63,44.18467737]
[1764647099682,0.1,127.73,127.64,0.14216157]
[1764647099994,0.71,127.72,127.69,11.08855841]
[1764647100305,0.81,127.73,127.7,11.08855841]
[1764647100504,0.71,127.72,127.7,11.08855841]
[1764647100686,0.81,127.73,127.71,11.08855841]
[1764647101295,8.63925797,127.73,127.68,8.7]
[1764647101489,11.08855841,127.71,127.66,11.08855841]
[1764647101690,11.08855841,127.71,127.67,11.08855841]
[1764647101908,11.08855841,127.71,127.65,16.53385118]
[1764647102082,11.79855841,127.7,127.66,11.08855841]
[1764647102285,11.08855841,127.68,127.62,8.7]
[1764647102492,11.08855841,127.66,127.62,19.78855841]
[1764647102692,11.08855841,127.67,127.63,11.08855841]
[1764647102895,11.08855841,127.67,127.62,8.7]
[1764647103211,0.71,127.66,127.62,19.78855841]
[1764647103590,0.71,127.66,127.63,11.08855841]
[1764647104098,0.71,127.67,127.65,11.08855841]
[1764647104304,0.71,127.66,127.64,11.08855841]
[1764647104509,11.79855841,127.66,127.62,8.7]
[1764647104887,0.71,127.65,127.62,8.7]
[1764647105582,8.54420062,127.65,127.62,11.08855841]
[1764647105798,8.54420062,127.65,127.59,16.53751202]
[1764647106006,0.71,127.64,127.6,11.08855841]
[1764647107299,11.79855841,127.64,127.59,27.62607043]
[1764647107686,11.79855841,127.64,127.59,16.53751202]
[1764647107887,0.71,127.63,127.59,27.62607043]
[1764647108087,11.79855841,127.63,127.59,8.7]
[1764647108390,18.92258992,127.65,127.61,11.08855841]
[1764647108615,18.92258992,127.65,127.59,27.62601485]
[1764647108616,11.79855841,127.63,127.59,27.62601485]
[1764647108791,0.71,127.63,127.59,27.62601485]
[1764647108985,8.54403151,127.65,127.6,11.08855841]
[1764647109192,19.63258992,127.65,127.6,11.08855841]
[1764647109414,0.71,127.64,127.6,11.08855841]
[1764647109711,11.79855841,127.64,127.6,11.08855841]
[1764647110106,0.71,127.63,127.6,11.08855841]
[1764647110306,0.71,127.63,127.6,18.92548932]
[1764647110628,0.71,127.65,127.61,11.08855841]
[1764647111500,0.66,127.67,127.64,11.08855841]
[1764647111822,0.66,127.66,127.62,19.78855841]
[1764647112211,0.66,127.66,127.62,8.7]
[1764647112519,0.66,127.66,127.62,19.78855841]
[1764647112823,0.66,127.66,127.62,27.62422879]
[1764647113001,0.66,127.66,127.63,11.08855841]
[1764647113198,0.66,127.66,127.62,27.62422879]
[1764647113697,0.66,127.66,127.63,11.08855841]
[1764647114113,19.58066612,127.68,127.63,11.08855841]
[1764647114314,0.66,127.7,127.66,11.08855841]
[1764647114505,0.66,127.69,127.66,11.08855841]
[1764647115215,0.66,127.69,127.65,8.7]
[1764647115652,11.08855841,127.68,127.65,8.7]
[1764647115914,11.08855841,127.67,127.63,8.7]
[1764647116126,11.74855841,127.68,127.64,11.08855841]
[1764647116293,11.08855841,127.68,127.64,11.08855841]
[1764647116501,0.66,127.67,127.63,19.78855841]
[1764647116826,11.74855841,127.67,127.63,8.7]
[1764647117324,11.74855841,127.67,127.63,19.78855841]
[1764647117325,0.66,127.66,127.63,19.78855841]
[1764647117824,0.66,127.66,127.63,8.7]
[1764647118619,0.66,127.66,127.6,11.08855841]
[1764647118620,11.08855841,127.65,127.6,11.08855841]
[1764647118795,11.08855841,127.65,127.58,19.59472073]
[1764647118796,0.66,127.64,127.61,19.78855841]
[1764647119126,11.08855841,127.66,127.62,11.08855841]
[1764647119327,0.66,127.65,127.62,11.08855841]
[1764647119518,0.66,127.66,127.62,11.08855841]
[1764647119714,18.92129075,127.67,127.62,11.08855841]
[1764647119898,0.66,127.66,127.63,11.08855841]
[1764647120101,0.66,127.66,127.63,19.78855841]
[1764647120298,0.66,127.66,127.63,8.7]
[1764647122821,4.64334086,127.66,127.63,8.7]
[1764647123027,4.64334086,127.66,127.61,8.7]
[1764647123028,3.98334086,127.65,127.61,8.7]
[1764647123323,4.64334086,127.65,127.61,8.7]
[1764647123528,0.66,127.64,127.61,8.7]
[1764647124326,0.66,127.64,127.61,12.68334086]
[1764647124728,0.66,127.64,127.61,20.51970597]
[1764647125713,0.66,127.65,127.61,20.51970597]
[1764647126439,0.66,127.67,127.62,3.98334086]
[1764647126612,0.66,127.66,127.61,36.12730625]
[1764647126809,0.66,127.66,127.62,3.98334086]
[1764647127146,0.66,127.66,127.61,36.12730625]
[1764647127352,0.66,127.66,127.62,3.98334086]
[1764647127530,4.64334086,127.66,127.61,36.12730625]
[1764647127848,4.64334086,127.66,127.61,40.11064711]
[1764647128146,0.66,127.65,127.61,40.11064711]
[1764647130542,0.66,127.65,127.61,8.7]
[1764647130733,2.54977428,127.63,127.61,8.7]
[1764647130926,2.54977428,127.64,127.61,8.7]
[1764647131127,3.20977428,127.64,127.61,8.7]
[1764647131327,3.20977428,127.63,127.61,8.7]
[1764647131522,0.66,127.63,127.59,7.83701719]
[1764647131830,3.20977428,127.62,127.59,8.7]
[1764647132246,0.66,127.61,127.59,8.7]
[1764647132748,0.66,127.62,127.59,19.08727912]
[1764647133061,8.49269366,127.67,127.6,2.54977428]
[1764647133222,2.54977428,127.65,127.6,2.54977428]
[1764647133548,2.54977428,127.64,127.59,19.08727912]
[1764647134054,0.66,127.63,127.59,19.08727912]
[1764647134426,8.49519843,127.63,127.59,8.7]
[1764647134625,2.54977428,127.62,127.59,8.7]
[1764647134825,0.66,127.62,127.59,8.7]
[1764647135155,0.66,127.62,127.59,11.24977428]
[1764647135734,0.66,127.62,127.59,8.7]
[1764647135932,0.66,127.62,127.59,11.24977428]
[1764647136126,0.66,127.62,127.59,8.7]
[1764647136321,2.54977428,127.6,127.53,8.7]
[1764647136529,2.54977428,127.59,127.54,2.54977428]
[1764647136827,0.66,127.58,127.54,2.54977428]
[1764647137151,0.66,127.6,127.57,2.54977428]
[1764647137523,0.66,127.6,127.56,8.7]
[1764647137729,0.66,127.6,127.57,2.54977428]
[1764647137954,0.66,127.6,127.56,11.24977428]
[1764647138538,0.66,127.6,127.56,19.08906168]
[1764647140222,3.20977428,127.6,127.56,16.5392874]
[1764647140630,0.66,127.59,127.56,16.5392874]
[1764647141150,11.0473791,127.59,127.56,8.7]
[1764647141649,0.67,127.6,127.57,2.54977428]
[1764647142361,0.67,127.61,127.57,2.54977428]
[1764647142957,0.67,127.61,127.57,10.38833151]
[1764647143536,3.21977428,127.61,127.57,10.38833151]
[1764647143733,2.54977428,127.59,127.56,16.53918582]
[1764647143939,2.54977428,127.59,127.56,8.7]
[1764647144152,0.67,127.58,127.56,8.7]
[1764647145956,7.75998116,127.58,127.56,8.7]
[1764647146158,7.75998116,127.58,127.52,7.84169097]
[1764647146159,14.92881474,127.57,127.52,7.84169097]
[1764647146361,15.59881474,127.57,127.52,16.56169097]
[1764647146563,0.67,127.56,127.52,16.56169097]
[1764647147058,7.75998116,127.56,127.52,16.56169097]
[1764647147234,7.75998116,127.56,127.52,8.72]
[1764647147440,7.75998116,127.55,127.52,8.72]
[1764647147944,7.75998116,127.54,127.52,8.72]
[1764647148352,0.67,127.53,127.52,8.72]
[1764647148762,0.67,127.54,127.52,8.72]
[1764647149753,7.75998116,127.54,127.5,16.56293907]
[1764647150136,0.67,127.53,127.5,8.72]
[1764647150336,7.75998116,127.53,127.5,8.72]
[1764647150532,7.84190715,127.52,127.48,7.08998116]
[1764647150738,8.51190715,127.52,127.49,8.72]
[1764647150961,7.75998116,127.54,127.49,15.80998116]
[1764647151145,0.67,127.54,127.51,7.08998116]
[1764647151346,0.67,127.54,127.52,7.08998116]
[1764647151546,0.67,127.54,127.5,8.95210649]
[1764647151840,8.50979808,127.56,127.52,7.08998116]
[1764647152041,0.67,127.55,127.51,7.08998116]
[1764647152354,0.67,127.55,127.51,14.93247919]
[1764647152551,0.67,127.55,127.52,15.80998116]
[1764647153214,0.67,127.55,127.52,8.72]
[1764647153357,15.60004714,127.55,127.52,8.72]
[1764647153757,0.67,127.54,127.52,8.72]
[1764647154276,8.51069001,127.54,127.52,8.72]
[1764647154654,0.67,127.53,127.52,8.72]
[1764647160284,19.59767035,127.57,127.52,8.72]
[1764647160285,7.75998116,127.55,127.52,8.72]
[1764647160473,15.59985528,127.56,127.52,8.72]
[1764647160673,0.67,127.55,127.52,8.72]
[1764647161164,0.67,127.59,127.54,7.08998116]
[1764647161374,7.83453462,127.64,127.58,7.08998116]
[1764647161587,0.67,127.63,127.61,7.08998116]
[1764647161893,0.67,127.63,127.6,7.08998116]
[1764647162987,8.50453462,127.64,127.6,7.08998116]
[1764647163282,0.67,127.63,127.61,7.08998116]
[1764647163484,8.50453462,127.64,127.61,7.08998116]
[1764647163785,0.67,127.63,127.61,7.08998116]
[1764647164277,0.67,127.63,127.6,7.08998116]
[1764647164586,0.67,127.63,127.6,14.92684976]
[1764647164989,7.83453462,127.64,127.61,7.08998116]
[1764647165181,7.8340658,127.65,127.62,15.80998116]
[1764647165489,0.67,127.64,127.62,15.80998116]
[1764647166285,0.67,127.66,127.63,7.08998116]
[1764647166512,0.67,127.66,127.62,11.26893774]
[1764647166799,2.54893774,127.65,127.62,8.72]
[1764647167167,8.50376619,127.66,127.6,8.72]
[1764647167168,3.21893774,127.64,127.6,8.72]
[1764647167685,0.67,127.63,127.6,11.26893774]
[1764647167890,0.67,127.63,127.6,8.72]
[1764647168081,0.67,127.63,127.6,19.10565912]
[1764647168396,0.67,127.63,127.6,23.64092832]
[1764647169492,0.67,127.63,127.6,16.55672138]
[1764647169662,0.67,127.63,127.6,23.64092832]
[1764647170160,0.67,127.65,127.61,7.08420694]
[1764647170477,0.67,127.65,127.62,7.08420694]
[1764647170662,0.67,127.65,127.63,8.7]
[1764647172789,8.50409273,127.65,127.63,8.7]
[1764647172988,7.08420694,127.64,127.61,8.7]
[1764647173185,0.68,127.64,127.61,8.7]
[1764647173382,0.68,127.63,127.61,8.7]
[1764647174171,8.51526371,127.63,127.61,8.7]
[1764647174686,0.68,127.62,127.61,8.7]
[1764647175977,39.15953713,127.69,127.61,8.7]
[1764647176192,0.68,127.63,127.61,8.7]
[1764647177309,0.68,127.63,127.61,16.53632262]
[1764647179112,0.68,127.67,127.62,7.08420694]
[1764647179270,0.68,127.67,127.63,7.08420694]
[1764647179467,0.68,127.67,127.64,8.7]
[1764647180308,8.51297793,127.67,127.64,15.78420694]
[1764647180487,8.51297793,127.67,127.64,8.7]
[1764647180670,0.68,127.66,127.64,15.78420694]
[1764647180991,0.68,127.66,127.64,8.7]
[1764647181496,0.68,127.66,127.64,15.78420694]
[1764647182099,7.83297793,127.67,127.64,15.78420694]
[1764647182390,8.51297793,127.67,127.64,15.78420694]
[1764647182598,0.68,127.66,127.64,15.78420694]
[1764647183592,0.68,127.66,127.64,8.7]
[1764647183778,0.68,127.66,127.64,15.78420694]
[1764647187777,0.68,127.66,127.64,8.7]
[1764647191000,0.68,127.66,127.64,16.53451718]
[1764647191593,0.67,127.68,127.65,2.54897282]
[1764647191789,0.67,127.67,127.65,2.54897282]
[1764647192392,0.67,127.67,127.65,3.98140535]
[1764647193691,0.67,127.67,127.65,11.81485519]
[1764647194201,3.98140535,127.66,127.58,8.80994492]
[1764647194400,0.67,127.65,127.59,12.68140535]
[1764647194603,4.65140535,127.65,127.6,3.98140535]
[1764647195103,0.67,127.64,127.6,3.98140535]
[1764647195792,8.5047931,127.64,127.6,11.8182329]
[1764647195990,12.48619845,127.64,127.6,7.83682755]
[1764647196192,0.67,127.63,127.6,7.83682755]
[1764647196386,0.67,127.63,127.59,12.68140535]
[1764647196606,4.65140535,127.63,127.59,12.68140535]
[1764647196780,0.67,127.63,127.59,12.68140535]
[1764647196986,0.67,127.62,127.59,12.68140535]
[1764647197389,0.67,127.62,127.59,8.7]
[1764647197591,3.98140535,127.6,127.56,8.7]
[1764647197905,11.81847323,127.6,127.56,16.53927517]
[1764647198107,0.67,127.59,127.56,16.53927517]
[1764647198311,0.67,127.59,127.56,20.52068052]
[1764647199702,0.67,127.59,127.56,16.53927517]
[1764647199900,12.48918023,127.59,127.56,8.7]
[1764647200404,0.67,127.58,127.56,8.7]
[1764647201909,8.50862572,127.58,127.56,8.7]
[1764647202113,12.49003107,127.58,127.54,8.68]
[1764647202407,0.66,127.57,127.54,8.68]
[1764647202596,0.66,127.57,127.54,12.66140535]
[1764647202794,0.66,127.57,127.54,8.68]
[1764647202992,4.64140535,127.57,127.54,8.68]
[1764647203291,0.66,127.57,127.54,8.68]
[1764647203606,0.66,127.56,127.54,8.68]
[1764647203785,7.83760482,127.59,127.55,3.98140535]
[1764647203983,8.49760482,127.59,127.56,3.98140535]
[1764647204188,23.57482173,127.6,127.56,3.98140535]
[1764647204189,0.66,127.6,127.57,8.7]
[1764647204390,0.66,127.59,127.57,12.68140535]
[1764647204611,0.66,127.59,127.57,8.7]
[1764647207590,12.47953493,127.59,127.55,8.7]
[1764647207906,3.98140535,127.58,127.55,8.7]
[1764647208112,4.64140535,127.58,127.55,8.7]
[1764647208294,0.66,127.57,127.55,8.7]
[1764647208493,0.66,127.58,127.55,12.68140535]
[1764647208695,0.66,127.58,127.55,8.7]
[1764647208997,7.83812958,127.59,127.56,3.98140535]
[1764647209203,8.49812958,127.59,127.56,3.98140535]
[1764647209712,0.66,127.58,127.56,3.98140535]
[1764647209915,0.66,127.58,127.55,20.52099583]
[1764647211415,0.66,127.61,127.57,3.98140535]
[1764647211597,0.66,127.61,127.58,8.7]
[1764647211792,0.66,127.61,127.58,12.68140535]
[1764647212412,8.49659027,127.61,127.58,12.68140535]
[1764647212996,19.58987662,127.62,127.59,3.98140535]
[1764647212997,8.49584637,127.62,127.59,3.98140535]
[1764647213232,7.83584637,127.62,127.59,3.98140535]
[1764647213421,0.66,127.61,127.58,20.51928677]
[1764647214021,0.66,127.61,127.59,3.98140535]
[1764647214424,0.66,127.61,127.58,20.51928677]
[1764647214715,0.66,127.61,127.58,12.68140535]
[1764647215018,0.66,127.61,127.58,8.7]
[1764647215218,0.66,127.61,127.56,7.83901386]
[1764647215219,3.98140535,127.6,127.56,8.68]
[1764647215427,0.66,127.61,127.58,3.98140535]
[1764647215926,0.66,127.61,127.57,12.79135027]
[1764647216103,8.49642806,127.61,127.57,20.63007528]
[1764647216519,0.66,127.6,127.57,20.63007528]
[1764647216914,0.66,127.6,127.58,3.98140535]
[1764647217109,0.66,127.61,127.58,3.98140535]
[1764647217514,4.64140535,127.61,127.57,16.64866993]
[1764647217710,7.83530211,127.63,127.58,12.79135027]
[1764647217915,0.66,127.62,127.59,8.7]
[1764647218316,0.66,127.62,127.59,16.53719136]
[1764647218516,12.47728583,127.62,127.59,8.7]
[1764647218710,4.64140535,127.62,127.59,8.7]
[1764647218917,0.66,127.61,127.59,8.7]
[1764647219830,3.98140535,127.6,127.59,8.7]
[1764647220124,3.98140535,127.6,127.57,8.7]
[1764647220332,0.66,127.59,127.57,8.7]
[1764647220629,3.98140535,127.58,127.54,8.7]
[1764647220926,3.98140535,127.57,127.54,8.7]
[1764647221127,0.66,127.59,127.54,8.7]
[1764647221128,0.66,127.6,127.55,12.79135027]
[1764647221433,0.66,127.6,127.57,3.98140535]
[1764647221728,0.66,127.6,127.58,8.7]
[1764647223113,0.66,127.63,127.59,12.79135027]
[1764647223518,4.64140535,127.63,127.59,8.80994492]
[1764647223933,0.66,127.62,127.59,8.80994492]
[1764647224622,0.66,127.62,127.59,16.64701324]
[1764647229116,0.66,127.62,127.59,20.62841859]
[1764647229715,0.66,127.62,127.59,16.64701324]
[1764647230642,12.47741049,127.62,127.58,16.53810906]
[1764647230933,3.98140535,127.61,127.58,16.53810906]
[1764647231136,4.64140535,127.61,127.58,16.53810906]
[1764647231322,0.66,127.6,127.58,16.53810906]
[1764647231519,7.83600514,127.62,127.58,16.53810906]
[1764647231520,8.49600514,127.62,127.58,20.51951441]
[1764647231719,0.66,127.61,127.58,20.51951441]
[1764647232118,0.66,127.61,127.58,8.7]
[1764647232119,3.98140535,127.6,127.58,8.7]
[1764647232530,4.64140535,127.59,127.58,8.7]
[1764647232728,4.64140535,127.59,127.55,16.64973438]
[1764647232928,3.98140535,127.57,127.54,7.84057927]
[1764647233127,3.98140535,127.57,127.54,16.54057927]
[1764647233327,3.98140535,127.55,127.54,8.7]
[1764647233529,4.64140535,127.56,127.54,8.7]
[1764647233720,0.66,127.56,127.54,8.7]
[1764647233920,4.64140535,127.58,127.55,7.84006272]
[1764647234112,8.49711147,127.6,127.55,7.84006272]
[1764647234315,47.83638625,127.7,127.55,7.84006272]
[1764647234316,0.66,127.59,127.56,12.79135027]
[1764647234532,0.66,127.59,127.57,8.7]
[1764647234928,3.98140535,127.61,127.57,8.7]
[1764647235130,0.66,127.61,127.57,12.68140535]
[1764647235327,0.66,127.6,127.57,12.68140535]
[1764647235934,0.66,127.6,127.57,20.51973058]